fUST/lending_fUST_20260117
["ID","MTS","AMOUNT","RATE_DAILY","PERIOD"]
[402221838,1768611045235,-545.04,0.00021917,3]
[402221840,1768611045245,-500.0,0.00021917,3]
[402221842,1768611045254,-500.0,0.00021917,2]
[402221844,1768611045263,-500.0,0.00021917,3]
[402221846,1768611045272,-500.0,0.00021917,3]
[402221848,1768611045282,-500.0,0.00021917,3]
[402221850,1768611045291,-1177.48,0.00021917,3]
[402221851,1768611045300,-636.73,0.00021917,3]
[402221853,1768611045312,-1144.76,0.00021917,3]
[402221855,1768611045321,-983.25,0.00021917,3]
[402221857,1768611045331,-925.36,0.00021917,3]
[402221859,1768611045341,-1152.06,0.00021917,3]
[402221861,1768611045351,-1506.87,0.00021917,3]
[402221863,1768611045361,-500.0,0.00021917,3]
[402221865,1768611045369,-500.0,0.00021917,3]
[402221867,1768611045379,-500.0,0.00021917,3]
[402221869,1768611045389,-500.0,0.00021917,3]
[402221872,1768611045399,-500.0,0.00021917,3]
[402221874,1768611045409,-500.0,0.00021917,3]
[402221876,1768611045418,-500.0,0.00021917,3]
[402221878,1768611045427,-1016.41,0.00021917,3]
[402221880,1768611045436,-500.0,0.00021917,3]
[402221882,1768611045446,-612.67,0.00021917,3]
[402221884,1768611045456,-500.0,0.00021917,3]
[402221886,1768611045465,-500.0,0.00021917,3]
[402221888,1768611045475,-500.0,0.00021917,3]
[402221890,1768611045484,-17203.77452243,0.00021917,3]
[402221892,1768611045494,-500.0,0.00021917,3]
[402221894,1768611045504,-532.97,0.00021917,3]
[402221896,1768611045513,-407.16098714,0.00021917,3]
[402221898,1768611045524,-500.0,0.00021917,3]
[402221900,1768611045533,-655.76,0.00021917,3]
[402221902,1768611045543,-851.51,0.00021917,3]
[402221904,1768611045552,-545.85,0.00021917,3]
[402221906,1768611045561,-898.92,0.00021917,3]
[402221908,1768611045570,-500.0,0.00021917,3]
[402221910,1768611045579,-500.0,0.00021917,3]
[402221912,1768611045588,-500.0,0.00021917,3]
[402221914,1768611045598,-500.0,0.00021917,3]
[402221916,1768611045607,-1200.0,0.00021917,3]
[402221918,1768611045616,-500.0,0.00021917,3]
[402221920,1768611045626,-500.23754526,0.00021917,3]
[402221923,1768611045635,-500.0,0.00021917,3]
[402221924,1768611045645,-500.0,0.00021917,3]
[402221927,1768611045655,-1123.03,0.00021917,3]
[402221929,1768611045664,-500.0,0.00021917,3]
[402221931,1768611045674,-1456.39,0.00021917,3]
[402221933,1768611045683,-500.0,0.00021917,3]
[402221935,1768611045692,-1211.33,0.00021917,3]
[402221937,1768611045702,-500.0,0.00021917,3]
[402221939,1768611045711,-500.0,0.00021917,3]
[402221941,1768611045720,-813.76,0.00021917,3]
[402221943,1768611045731,-647.05,0.00021917,3]
[402221945,1768611045740,-500.0,0.00021917,3]
[402221947,1768611045749,-500.0,0.00021917,3]
[402221949,1768611045758,-502.15,0.00021917,3]
[402221951,1768611045768,-500.0,0.00021917,2]
[402221953,1768611045777,-500.0,0.00021917,3]
[402221955,1768611045787,-500.0,0.00021917,3]
[402221957,1768611045797,-1118.72,0.00021917,3]
[402221959,1768611045807,-500.0,0.00021917,3]
[402221961,1768611045816,-500.0,0.00021917,3]
[402221963,1768611045825,-500.0,0.00021917,3]
[402221965,1768611045835,-500.0,0.00021917,3]
[402221967,1768611045844,-500.0,0.00021917,3]
[402221969,1768611045854,-1210.78,0.00021917,3]
[402221971,1768611045863,-500.0,0.00021917,3]
[402221972,1768611045872,-875.46,0.00021917,3]
[402221973,1768611045881,-500.0,0.00021917,3]
[402221974,1768611045890,-580.5,0.00021917,3]
[402221975,1768611045899,-500.0,0.00021917,3]
[402221976,1768611045909,-1896.68,0.00021917,3]
[402221977,1768611045919,-504.02,0.00021917,3]
[402221978,1768611045928,-500.0,0.00021917,3]
[402221979,1768611045938,-500.0,0.00021917,3]
[402221980,1768611045947,-525.64,0.00021917,3]
[402221981,1768611045957,-500.0,0.00021917,3]
[402221982,1768611045966,-500.0,0.00021917,3]
[402221983,1768611045977,-500.0,0.00021917,3]
[402221984,1768611045986,-602.43,0.00021917,3]
[402221985,1768611045995,-514.13,0.00021917,3]
[402221986,1768611046006,-634.09,0.00021917,3]
[402221987,1768611046016,-1555.35,0.00021917,3]
[402221988,1768611046025,-500.0,0.00021917,3]
[402221989,1768611046034,-651.03,0.00021917,3]
[402221990,1768611046044,-500.0,0.00021917,3]
[402221991,1768611046053,-500.0,0.00021917,3]
[402221992,1768611046062,-500.0,0.00021917,3]
[402221993,1768611046072,-500.0,0.00021917,3]
[402221994,1768611046081,-742.85,0.00021917,3]
[402221995,1768611046090,-1110.79,0.00021917,3]
[402221996,1768611046099,-1042.45,0.00021917,3]
[402221997,1768611046109,-500.0,0.00021917,3]
[402221998,1768611046118,-500.0,0.00021917,3]
[402221999,1768611046127,-500.0,0.00021917,3]
[402222000,1768611046137,-935.89,0.00021917,3]
[402222001,1768611046146,-500.0,0.00021917,3]
[402222002,1768611046155,-500.0,0.00021917,3]
[402222003,1768611046164,-500.0,0.00021917,3]
[402222004,1768611046173,-552.12,0.00021917,3]
[402222005,1768611046183,-1000.0,0.00021917,2]
[402222006,1768611046191,-1948.06,0.00021917,3]
[402222007,1768611046201,-500.0,0.00021917,3]
[402222008,1768611046210,-500.0,0.00021917,3]
[402222009,1768611046220,-500.0,0.00021917,3]
[402222010,1768611046229,-1092.53,0.00021917,3]
[402222011,1768611046239,-500.0,0.00021917,3]
[402222012,1768611046248,-500.0,0.00021917,3]
[402222013,1768611046257,-500.0,0.00021917,3]
[402222014,1768611046266,-500.0,0.00021917,3]
[402222015,1768611046275,-500.0,0.00021917,3]
[402222016,1768611046284,-500.0,0.00021917,3]
[402222017,1768611046294,-1252.24,0.00021917,3]
[402222018,1768611046304,-500.0,0.00021917,3]
[402222019,1768611046317,-1993.83,0.00021917,3]
[402222020,1768611046326,-736.23,0.00021917,3]
[402222021,1768611046335,-500.0,0.00021917,3]
[402222022,1768611046344,-506.68,0.00021917,3]
[402222023,1768611046355,-500.0,0.00021917,3]
[402222024,1768611046364,-721.11,0.00021917,3]
[402222025,1768611046373,-500.0,0.00021917,3]
[402222026,1768611046384,-500.0,0.00021917,3]
[402222027,1768611046393,-500.0,0.00021917,3]
[402222028,1768611046402,-469.1558782,0.00021917,3]
[402222029,1768611046411,-500.0,0.00021917,3]
[402222030,1768611046420,-500.0,0.00021917,3]
[402222031,1768611046429,-500.0,0.00021917,3]
[402222032,1768611046439,-613.20891753,0.00021917,3]
[402222033,1768611046449,-500.0,0.00021917,3]
[402222034,1768611046458,-151.0,0.00021917,2]
[402222035,1768611046468,-500.0,0.00021917,3]
[402222036,1768611046481,-151.0,0.00021917,2]
[402222037,1768611046490,-1781.96,0.00021917,3]
[402222038,1768611046500,-587.73,0.00021917,3]
[402222039,1768611046509,-500.0,0.00021917,3]
[402222040,1768611046518,-1585.89,0.00021917,3]
[402222041,1768611046527,-500.0,0.00021917,3]
[402222042,1768611046536,-500.0,0.00021917,3]
[402222043,1768611046546,-523.15,0.00021917,3]
[402222044,1768611046555,-500.0,0.00021917,3]
[402222045,1768611046564,-670.04,0.00021917,3]
[402222046,1768611046573,-500.0,0.00021917,3]
[402222047,1768611046582,-500.0,0.00021917,3]
[402222048,1768611046591,-973.09,0.00021917,3]
[402222049,1768611046600,-500.0,0.00021917,3]
[402222050,1768611046609,-1057.67,0.00021917,3]
[402222051,1768611046619,-500.0,0.00021917,3]
[402222052,1768611046628,-500.0,0.00021917,3]
[402222053,1768611046637,-500.0,0.00021917,3]
[402222054,1768611046646,-500.0,0.00021917,3]
[402222055,1768611046656,-500.0,0.00021917,3]
[402222056,1768611046665,-500.0,0.00021917,3]
[402222057,1768611046675,-1071.59,0.00021917,3]
[402222058,1768611046684,-1156.37,0.00021917,3]
[402222059,1768611046693,-2078.94,0.00021917,3]
[402222060,1768611046703,-500.0,0.00021917,3]
[402222061,1768611046712,-500.0,0.00021917,3]
[402222062,1768611046722,-500.0,0.00021917,3]
[402222063,1768611046731,-633.61,0.00021917,3]
[402222065,1768611046740,-1850.54,0.00021917,3]
[402222066,1768611046750,-803.71,0.00021917,3]
[402222067,1768611046760,-500.0,0.00021917,3]
[402222068,1768611046769,-500.0,0.00021917,3]
[402222069,1768611046779,-500.0,0.00021917,3]
[402222070,1768611046788,-500.0,0.00021917,3]
[402222071,1768611046798,-172.552376,0.00021917,3]
[402222072,1768611046807,-1043.28,0.00021917,3]
[402222073,1768611046816,-500.0,0.00021917,3]
[402222074,1768611046825,-500.0,0.00021917,3]
[402222075,1768611046835,-500.0,0.00021917,3]
[402222076,1768611046844,-523.73,0.00021917,3]
[402222077,1768611046854,-500.0,0.00021917,3]
[402222078,1768611046863,-158.848643,0.00021917,3]
[402222079,1768611046872,-623.45549187,0.00021917,3]
[402222080,1768611046882,-500.0,0.00021917,3]
[402222081,1768611046965,-500.0,0.00021917,3]
[402222082,1768611046974,-577.81,0.00021917,3]
[402222083,1768611046984,-500.0,0.00021917,3]
[402222084,1768611046993,-2041.61,0.00021917,3]
[402222085,1768611047002,-804.19,0.00021917,3]
[402222086,1768611047012,-500.0,0.00021917,3]
[402222087,1768611047022,-888.61,0.00021917,3]
[402222088,1768611047031,-1047.04,0.00021917,3]
[402222089,1768611047040,-531.94819803,0.00021917,3]
[402222090,1768611047049,-500.0,0.00021917,3]
[402222091,1768611047060,-1058.35,0.00021917,3]
[402222092,1768611047069,-1503.27,0.00021917,3]
[402222093,1768611047078,-500.0,0.00021917,3]
[402222094,1768611047088,-2478.08,0.00021917,3]
[402222095,1768611047098,-500.0,0.00021917,3]
[402222096,1768611047108,-500.0,0.00021917,3]
[402222097,1768611047117,-221.92094381,0.00021917,3]
[402222098,1768611047126,-2813.22,0.00021917,3]
[402222099,1768611047135,-500.0,0.00021917,3]
[402222100,1768611047144,-500.0,0.00021917,3]
[402222101,1768611047154,-432.18851547,0.00021917,3]
[402222102,1768611047163,-1648.6,0.00021917,3]
[402222103,1768611047172,-679.04,0.00021917,3]
[402222104,1768611047181,-500.0,0.00021917,3]
[402222105,1768611047191,-500.0,0.00021917,3]
[402222106,1768611047200,-587.14,0.00021917,3]
[402222107,1768611047210,-500.0,0.00021917,3]
[402222108,1768611047219,-1613.45,0.00021917,3]
[402222109,1768611047228,-500.0,0.00021917,3]
[402222110,1768611047237,-772.1,0.00021917,3]
[402222111,1768611047247,-2456.07,0.00021917,3]
[402222112,1768611047256,-500.0,0.00021917,3]
[402222113,1768611047265,-500.0,0.00021917,3]
[402222114,1768611047274,-1199.32,0.00021917,3]
[402222115,1768611047283,-779.61,0.00021917,3]
[402222116,1768611047292,-500.0,0.00021917,3]
[402222117,1768611047302,-500.0,0.00021917,3]
[402222118,1768611047315,-500.0,0.00021917,3]
[402222119,1768611047323,-500.0,0.00021917,3]
[402222120,1768611047333,-1021.99,0.00021917,3]
[402222121,1768611047343,-850.34,0.00021917,3]
[402222122,1768611047353,-619.66,0.00021917,3]
[402222123,1768611047363,-500.0,0.00021917,3]
[402222124,1768611047372,-500.0,0.00021917,3]
[402222125,1768611047383,-1658.3,0.00021917,3]
[402222126,1768611047392,-500.0,0.00021917,3]
[402222127,1768611047402,-500.0,0.00021917,3]
[402222128,1768611047412,-500.0,0.00021917,3]
[402222129,1768611047420,-500.0,0.00021917,3]
[402222130,1768611047431,-500.0,0.00021917,3]
[402222131,1768611047440,-2229.1,0.00021917,3]
[402222132,1768611047449,-943.54,0.00021917,3]
[402222133,1768611047458,-500.0,0.00021917,3]
[402222134,1768611047467,-500.0,0.00021917,3]
[402222135,1768611047476,-500.0,0.00021917,3]
[402222136,1768611047485,-500.0,0.00021917,3]
[402222137,1768611047495,-500.0,0.00021917,3]
[402222138,1768611047503,-611.62392847,0.00021917,3]
[402222139,1768611047513,-1994.23,0.00021917,3]
[402222140,1768611047522,-500.0,0.00021917,3]
[402222141,1768611047531,-716.67,0.00021917,3]
[402222142,1768611047540,-500.0,0.00021917,3]
[402222143,1768611047549,-500.0,0.00021917,3]
[402222144,1768611047558,-500.0,0.00021917,3]
[402222145,1768611047567,-500.0,0.00021917,3]
[402222146,1768611047577,-1483.1,0.00021917,3]
[402222147,1768611047587,-728.81,0.00021917,3]
[402222148,1768611047595,-500.0,0.00021917,3]
[402222149,1768611047605,-809.78,0.00021917,3]
[402222150,1768611047615,-500.0,0.00021917,3]
[402222151,1768611047623,-500.0,0.00021917,3]
[402222152,1768611047632,-667.01,0.00021917,3]
[402222153,1768611047642,-501.10465071,0.00021917,3]
[402222154,1768611047652,-500.0,0.00021917,3]
[402222155,1768611047662,-500.0,0.00021917,3]
[402222156,1768611047671,-1000.0,0.00021917,2]
[402222157,1768611047680,-1783.86,0.00021917,3]
[402222158,1768611047689,-500.0,0.00021917,3]
[402222159,1768611047698,-531.48115857,0.00021917,3]
[402222160,1768611047708,-615.63,0.00021917,3]
[402222161,1768611047717,-500.0,0.00021917,3]
[402222162,1768611047726,-847.13,0.00021917,3]
[402222163,1768611047736,-8431.7,0.00021917,3]
[402222164,1768611047745,-1072.54,0.00021917,3]
[402222165,1768611047754,-1089.5,0.00021917,3]
[402222166,1768611047764,-500.0,0.00021917,3]
[402222168,1768611047774,-500.0,0.00021917,3]
[402222169,1768611047783,-512.25,0.00021917,3]
[402222171,1768611047793,-1498.99,0.00021917,3]
[402222172,1768611047802,-500.0,0.00021917,3]
[402222173,1768611047812,-825.16,0.00021917,3]
[402222174,1768611047822,-183.31730095,0.00021917,3]
[402222175,1768611047831,-500.0,0.00021917,3]
[402222176,1768611047841,-1004.34,0.00021917,3]
[402222177,1768611047850,-500.0,0.00021917,3]
[402222178,1768611047859,-1883.27,0.00021917,3]
[402222179,1768611047869,-500.0,0.00021917,3]
[402222180,1768611047877,-934.28,0.00021917,3]
[402222181,1768611047887,-1719.19,0.00021917,3]
[402222182,1768611047896,-581.44,0.00021917,3]
[402222183,1768611047905,-1410.58,0.00021917,3]
[402222184,1768611047914,-500.0,0.00021917,3]
[402222185,1768611047923,-500.0,0.00021917,3]
[402222186,1768611047932,-500.0,0.00021917,3]
[402222187,1768611047942,-638.59,0.00021917,3]
[402222188,1768611047951,-1014.11,0.00021917,3]
[402222189,1768611047960,-500.0,0.00021917,3]
[402222190,1768611047970,-1138.88,0.00021917,3]
[402222191,1768611047979,-571.45,0.00021917,3]
[402222192,1768611047988,-918.74,0.00021917,3]
[402222193,1768611047998,-672.51,0.00021917,3]
[402222194,1768611048008,-500.0,0.00021917,3]
[402222195,1768611048017,-500.0,0.00021917,3]
[402222196,1768611048027,-500.0,0.00021917,3]
[402222197,1768611048036,-424.3247368,0.00021917,3]
[402222198,1768611048045,-515.07600154,0.00021917,3]
[402222199,1768611048054,-500.0,0.00021917,3]
[402222200,1768611048064,-513.23,0.00021917,3]
[402222201,1768611048073,-500.0,0.00021917,3]
[402222202,1768611048081,-500.0,0.00021917,3]
[402222203,1768611048090,-500.0,0.00021917,3]
[402222204,1768611048099,-500.0,0.00021917,3]
[402222205,1768611048109,-500.0,0.00021917,3]
[402222206,1768611048118,-500.0,0.00021917,3]
[402222207,1768611048128,-532.71,0.00021917,3]
[402222208,1768611048137,-500.0,0.00021917,3]
[402222209,1768611048146,-500.0,0.00021917,3]
[402222210,1768611048155,-740.51,0.00021917,3]
[402222211,1768611048164,-500.0,0.00021917,3]
[402222212,1768611048173,-500.0,0.00021917,3]
[402222213,1768611048183,-500.0,0.00021917,3]
[402222214,1768611048192,-1669.85,0.00021917,3]
[402222215,1768611048200,-500.0,0.00021917,3]
[402222216,1768611048210,-2942.71,0.00021917,3]
[402222217,1768611048219,-3952.31,0.00021917,3]
[402222218,1768611048229,-500.0,0.00021917,3]
[402222219,1768611048238,-950.31,0.00021917,3]
[402222220,1768611048248,-500.0,0.00021917,3]
[402222221,1768611048257,-500.0,0.00021917,3]
[402222222,1768611048266,-500.0,0.00021917,3]
[402222223,1768611048277,-870.56,0.00021917,3]
[402222224,1768611048286,-1415.14,0.00021917,3]
[402222225,1768611048295,-500.87180141,0.00021917,3]
[402222226,1768611048304,-500.0,0.00021917,3]
[402222227,1768611048317,-500.0,0.00021917,3]
[402222228,1768611048326,-500.0,0.00021917,3]
[402222229,1768611048336,-500.0,0.00021917,3]
[402222230,1768611048344,-500.0,0.00021917,3]
[402222231,1768611048355,-500.0,0.00021917,3]
[402222232,1768611048364,-1074.71,0.00021917,3]
[402222233,1768611048374,-1042.11,0.00021917,3]
[402222234,1768611048383,-856.9,0.00021917,3]
[402222235,1768611048392,-500.0,0.00021917,3]
[402222236,1768611048401,-1329.14,0.00021917,3]
[402222237,1768611048410,-500.0,0.00021917,3]
[402222238,1768611048419,-754.34,0.00021917,3]
[402222239,1768611048428,-500.0,0.00021917,3]
[402222240,1768611048438,-500.0,0.00021917,3]
[402222241,1768611048448,-1451.52,0.00021917,3]
[402222242,1768611048457,-500.0,0.00021917,3]
[402222243,1768611048467,-927.09,0.00021917,3]
[402222244,1768611048476,-500.0,0.00021917,3]
[402222245,1768611048486,-500.0,0.00021917,3]
[402222246,1768611048495,-500.0,0.00021917,3]
[402222247,1768611048504,-593.53,0.00021917,3]
[402222248,1768611048513,-639.69,0.00021917,3]
[402222249,1768611048522,-789.67,0.00021917,3]
[402222250,1768611048532,-500.0,0.00021917,3]
[402222251,1768611048540,-713.13,0.00021917,3]
[402222252,1768611048550,-500.0,0.00021917,3]
[402222253,1768611048559,-645.7,0.00021917,3]
[402222254,1768611048568,-500.0,0.00021917,3]
[402222255,1768611048577,-500.0,0.00021917,3]
[402222256,1768611048585,-500.0,0.00021917,3]
[402222257,1768611048594,-700.17,0.00021917,3]
[402222258,1768611048603,-500.0,0.00021917,3]
[402222259,1768611048612,-500.0,0.00021917,3]
[402222260,1768611048621,-1228.66,0.00021917,3]
[402222261,1768611048631,-785.48,0.00021917,3]
[402222262,1768611048639,-500.0,0.00021917,3]
[402222263,1768611048648,-500.0,0.00021917,3]
[402222264,1768611048657,-500.0,0.00021917,3]
[402222265,1768611048667,-500.0,0.00021917,3]
[402222266,1768611048675,-500.0,0.00021917,3]
[402222267,1768611048685,-500.0,0.00021917,3]
[402222268,1768611048694,-1145.41,0.00021917,3]
[402222269,1768611048704,-850.14,0.00021917,3]
[402222270,1768611048713,-500.3887722,0.00021917,3]
[402222271,1768611048722,-500.0,0.00021917,3]
[402222272,1768611048731,-500.0,0.00021917,3]
[402222273,1768611048740,-500.0,0.00021917,3]
[402222274,1768611048749,-1669.04,0.00021917,3]
[402222275,1768611048758,-1473.27,0.00021917,3]
[402222276,1768611048767,-994.98,0.00021917,3]
[402222277,1768611048776,-500.0,0.00021917,3]
[402222278,1768611048785,-1994.44,0.00021917,3]
[402222279,1768611048795,-309.64509442,0.00021917,3]
[402222280,1768611048803,-500.0,0.00021917,3]
[402222281,1768611048812,-217.81700037,0.00021917,3]
[402222282,1768611048821,-500.0,0.00021917,3]
[402222283,1768611048830,-500.0,0.00021917,3]
[402222284,1768611048841,-500.0,0.00021917,3]
[402222285,1768611048853,-500.0,0.00021917,3]
[402222286,1768611048863,-500.0,0.00021917,3]
[402222287,1768611048872,-791.62,0.00021917,3]
[402222288,1768611048881,-423.48330091,0.00021917,3]
[402222289,1768611048890,-523.14,0.00021917,3]
[402222290,1768611048899,-467.47729125,0.00021917,3]
[402222291,1768611048908,-500.0,0.00021917,3]
[402222292,1768611048917,-1791.95,0.00021917,3]
[402222293,1768611048925,-1547.34,0.00021917,3]
[402222294,1768611048935,-1431.53,0.00021917,3]
[402222295,1768611048944,-702.56,0.00021917,3]
[402222296,1768611048961,-500.0,0.00021917,3]
[402222297,1768611048970,-500.0,0.00021917,3]
[402222298,1768611048980,-723.93,0.00021917,3]
[402222299,1768611048989,-500.0,0.00021917,3]
[402222300,1768611048999,-500.0,0.00021917,3]
[402222301,1768611049007,-609.56,0.00021917,3]
[402222302,1768611049016,-500.0,0.00021917,3]
[402222303,1768611049025,-500.0,0.00021917,3]
[402222304,1768611049034,-1640.86,0.00021917,3]
[402222305,1768611049043,-500.0,0.00021917,3]
[402222306,1768611049051,-556.58,0.00021917,3]
[402222307,1768611049060,-922.82,0.00021917,3]
[402222308,1768611049069,-581.37,0.00021917,3]
[402222309,1768611049078,-1428.74,0.00021917,3]
[402222310,1768611049087,-500.0,0.00021917,3]
[402222311,1768611049096,-500.0,0.00021917,3]
[402222312,1768611049106,-500.0,0.00021917,3]
[402222313,1768611049114,-1310.23,0.00021917,3]
[402222314,1768611049123,-578.33327082,0.00021917,3]
[402222315,1768611049131,-500.0,0.00021917,2]
[402222316,1768611049140,-2677.04,0.00021917,3]
[402222317,1768611049148,-307.51856445,0.00021917,3]
[402222318,1768611049157,-500.0,0.00021917,3]
[402222319,1768611049166,-500.0,0.00021917,3]
[402222320,1768611049175,-500.0,0.00021917,3]
[402222321,1768611049183,-500.0,0.00021917,3]
[402222322,1768611049192,-500.0,0.00021917,3]
[402222323,1768611049200,-711.36,0.00021917,3]
[402222324,1768611049209,-500.0,0.00021917,3]
[402222325,1768611049218,-500.0,0.00021917,3]
[402222326,1768611049227,-500.0,0.00021917,3]
[402222327,1768611049235,-16346.06,0.00021917,3]
[402222328,1768611049245,-762.01,0.00021917,3]
[402222329,1768611049254,-538.13,0.00021917,3]
[402222330,1768611049262,-607.94,0.00021917,3]
[402222331,1768611049271,-1326.55,0.00021917,3]
[402222332,1768611049279,-1092.06,0.00021917,3]
[402222333,1768611049288,-500.0,0.00021917,3]
[402222334,1768611049297,-500.0,0.00021917,3]
[402222335,1768611049306,-500.38508184,0.00021917,3]
[402222336,1768611049319,-500.0,0.00021917,3]
[402222337,1768611049328,-1594.34,0.00021917,3]
[402222338,1768611049336,-500.0,0.00021917,3]
[402222339,1768611049346,-612.9,0.00021917,3]
[402222340,1768611049355,-637.69,0.00021917,3]
[402222341,1768611049364,-1029.09,0.00021917,3]
[402222342,1768611049373,-2364.05,0.00021917,3]
[402222343,1768611049383,-500.0,0.00021917,3]
[402222344,1768611049392,-506.86,0.00021917,3]
[402222345,1768611049402,-500.0,0.00021917,3]
[402222346,1768611049411,-500.0,0.00021917,3]
[402222347,1768611049420,-346.60467188,0.00021917,3]
[402222348,1768611049429,-500.0,0.00021917,3]
[402222349,1768611049438,-500.0,0.00021917,3]
[402222350,1768611049448,-1141.76,0.00021917,3]
[402222351,1768611049457,-500.0,0.00021917,3]
[402222352,1768611049466,-500.0,0.00021917,3]
[402222353,1768611049475,-533.45,0.00021917,3]
[402222354,1768611049484,-500.0,0.00021917,3]
[402222355,1768611049493,-1293.79,0.00021917,3]
[402222356,1768611049501,-1226.67,0.00021917,3]
[402222357,1768611049510,-500.0,0.00021917,3]
[402222358,1768611049519,-500.0,0.00021917,3]
[402222359,1768611049528,-500.0,0.00021917,3]
[402222360,1768611049537,-1591.45,0.00021917,3]
[402222361,1768611049545,-500.0,0.00021917,3]
[402222362,1768611049554,-500.0,0.00021917,3]
[402222363,1768611049563,-500.0,0.00021917,3]
[402222364,1768611049572,-500.0,0.00021917,3]
[402222365,1768611049581,-479.23437503,0.00021917,3]
[402222366,1768611049590,-899.14,0.00021917,3]
[402222367,1768611049599,-500.0,0.00021917,3]
[402222368,1768611049608,-1683.12,0.00021917,3]
[402222369,1768611049617,-564.3,0.00021917,3]
[402222371,1768611049626,-642.347126,0.00021917,3]
[402222372,1768611049635,-500.0,0.00021917,3]
[402222373,1768611049645,-500.0,0.00021917,3]
[402222374,1768611049654,-500.0,0.00021917,3]
[402222375,1768611049663,-500.0,0.00021917,2]
[402222376,1768611049673,-500.0,0.00021917,3]
[402222377,1768611049682,-2128.03,0.00021917,3]
[402222378,1768611049691,-500.0,0.00021917,3]
[402222379,1768611049700,-500.0,0.00021917,3]
[402222380,1768611049710,-500.0,0.00021917,3]
[402222381,1768611049718,-500.0,0.00021917,3]
[402222382,1768611049727,-507.96482271,0.00021917,3]
[402222383,1768611049736,-500.0,0.00021917,2]
[402222384,1768611049746,-500.0,0.00021917,3]
[402222385,1768611049755,-500.0,0.00021917,3]
[402222386,1768611049764,-1884.7,0.00021917,3]
[402222387,1768611049773,-500.0,0.00021917,3]
[402222388,1768611049782,-500.0,0.00021917,3]
[402222389,1768611049791,-722.91,0.00021917,3]
[402222390,1768611049800,-500.0,0.00021917,3]
[402222391,1768611049810,-3302.77,0.00021917,3]
[402222392,1768611049819,-500.0,0.00021917,3]
[402222393,1768611049828,-500.0,0.00021917,3]
[402222394,1768611049837,-399.9603662,0.00021917,3]
[402222395,1768611049846,-509.67621523,0.00021917,3]
[402222396,1768611049856,-500.0,0.00021917,3]
[402222397,1768611049865,-500.0,0.00021917,2]
[402222398,1768611049874,-500.0,0.00021917,3]
[402222399,1768611049883,-1595.17,0.00021917,3]
[402222400,1768611049892,-1111.9,0.00021917,3]
[402222401,1768611049901,-1235.52,0.00021917,3]
[402222402,1768611049910,-500.0,0.00021917,3]
[402222403,1768611049919,-500.0,0.00021917,3]
[402222404,1768611049928,-770.51,0.00021917,3]
[402222405,1768611049952,-500.0,0.00021917,3]
[402222406,1768611049961,-2225.62,0.00021917,3]
[402222407,1768611049971,-500.0,0.00021917,3]
[402222408,1768611049980,-500.0,0.00021917,3]